lending/lending_fUSD_20240411
["ID","MTS","AMOUNT","RATE_DAILY","PERIOD"]
[322196656,1712869938550,-660.51,0.00028219,2]
[322196657,1712869938560,-2867.21,0.00028219,2]
[322196658,1712869938570,-500.0,0.00028219,2]
[322196659,1712869938580,-500.0,0.00028219,2]
[322196660,1712869938589,-1346.35,0.00028219,2]
[322196661,1712869938599,-500.0,0.00028219,2]
[322196662,1712869938609,-500.0,0.00028219,2]
[322196663,1712869938620,-500.0,0.00028219,2]
[322196664,1712869938630,-500.0,0.00028219,2]
[322196665,1712869938641,-2960.74,0.00028219,2]
[322196666,1712869938650,-887.19,0.00028219,2]
[322196667,1712869938660,-1179.12,0.00028219,2]
[322196668,1712869938671,-500.0,0.00028219,2]
[322196669,1712869938681,-500.0,0.00028219,2]
[322196670,1712869938691,-1283.97,0.00028219,2]
[322196671,1712869938701,-500.0,0.00028219,2]
[322196672,1712869938711,-872.68,0.00028219,2]
[322196673,1712869938721,-1502.33,0.00028219,2]
[322196674,1712869938732,-297.70056092,0.00028219,2]
[322196675,1712869938741,-10128.26,0.00028219,2]
[322196676,1712869938751,-683.97,0.00028219,2]
[322196677,1712869938761,-623.58,0.00028219,2]
[322196678,1712869938771,-500.0,0.00028219,2]
[322196679,1712869938781,-1185.71,0.00028219,2]
[322196680,1712869938791,-500.0,0.00028219,2]
[322196681,1712869938802,-500.0,0.00028219,2]
[322196682,1712869938812,-1427.1,0.00028219,2]
[322196683,1712869938822,-2367.24,0.00028219,2]
[322196684,1712869939101,-500.0,0.00028219,2]
[322196685,1712869939116,-500.0,0.00028219,2]
[322196686,1712869939126,-2143.26,0.00028219,2]
[322196687,1712869939137,-500.0,0.00028219,2]
[322196688,1712869939148,-1106.87,0.00028219,2]
[322196689,1712869939157,-2686.26,0.00028219,2]
[322196690,1712869939167,-2721.81,0.00028219,2]
[322196691,1712869939177,-3567.1,0.00028219,2]
[322196692,1712869939186,-500.0,0.00028219,2]
[322196693,1712869939196,-3548.97,0.00028219,2]
[322196694,1712869939205,-1844.22,0.00028219,2]
[322196695,1712869939215,-371.98979275,0.00028219,2]
[322196696,1712869939232,-19344.8,0.00028219,2]
[322196697,1712869939241,-537.03,0.00028219,2]
[322196698,1712869939251,-500.0,0.00028219,2]
[322196699,1712869939260,-1228.02,0.00028219,2]
[322196700,1712869939270,-3053.42,0.00028219,2]
[322196701,1712869939279,-4239.16,0.00028219,2]
[322196702,1712869939289,-1745.12,0.00028219,2]
[322196703,1712869939299,-500.0,0.00028219,2]
[322196704,1712869939309,-3035.53,0.00028219,2]
[322196705,1712869939319,-500.0,0.00028219,2]
[322196706,1712869939329,-500.0,0.00028219,2]
[322196707,1712869939339,-4808.47,0.00028219,2]
[322196708,1712869939349,-2664.5,0.00028219,2]
[322196709,1712869939360,-1373.93,0.00028219,2]
[322196710,1712869939370,-505.74,0.00028219,2]
[322196711,1712869939383,-3190.86,0.00028219,2]
[322196712,1712869939394,-738.07,0.00028219,2]
[322196713,1712869939403,-1109.77,0.00028219,2]
[322196714,1712869939412,-1400.98,0.00028219,2]
[322196715,1712869939421,-2221.72,0.00028219,2]
[322196716,1712869939432,-500.0,0.00028219,2]
[322196717,1712869939442,-500.0,0.00028219,2]
[322196718,1712869939452,-17424.44,0.00028219,2]
[322196719,1712869939462,-2263.75,0.00028219,2]
[322196720,1712869939472,-1128.64,0.00028219,2]
[322196721,1712869939481,-1502.24,0.00028219,2]
[322196722,1712869939490,-612.74,0.00028219,2]
[322196723,1712869939500,-500.0,0.00028219,2]
[322196724,1712869939510,-307.44894874,0.00028219,2]
[322196725,1712869939519,-17072.27,0.00028219,2]
[322196726,1712869939528,-3052.22,0.00028219,2]
[322196727,1712869939537,-500.0,0.00028219,2]
[322196728,1712869939547,-3640.47,0.00028219,2]
[322196729,1712869939556,-500.0,0.00028219,2]
[322196730,1712869939567,-1957.97,0.00028219,2]
[322196731,1712869939576,-955.9,0.00028219,2]
[322196732,1712869939586,-500.0,0.00028219,2]
[322196733,1712869939595,-500.0,0.00028219,2]
[322196734,1712869939605,-500.0,0.00028219,2]
[322196735,1712869939614,-500.0,0.00028219,2]
[322196736,1712869939623,-5766.3,0.00028219,2]
[322196737,1712869939632,-3659.25,0.00028219,2]
[322196738,1712869939643,-592.00947455,0.00028219,2]
[322196739,1712869939652,-500.0,0.00028219,2]
[322196740,1712869939662,-3575.16,0.00028219,2]
[322196741,1712869939671,-711.78,0.00028219,2]
[322196742,1712869939680,-500.0,0.00028219,2]
[322196743,1712869939690,-7639.5,0.00028219,2]
[322196744,1712869939699,-500.0,0.00028219,2]
[322196745,1712869939709,-1392.31,0.00028219,2]
[322196746,1712869939720,-500.0,0.00028219,2]
[322196747,1712869939730,-7389.58,0.00028219,2]
[322196748,1712869939739,-500.0,0.00028219,2]
[322196749,1712869939749,-3014.69,0.00028219,2]
[322196750,1712869939759,-2191.02,0.00028219,2]
[322196751,1712869939769,-5336.03,0.00028219,2]
[322196752,1712869939778,-4291.51,0.00028219,2]
[322196753,1712869939789,-1051.14,0.00028219,2]
[322196754,1712869939798,-500.0,0.00028219,2]
[322196755,1712869939808,-604.03,0.00028219,2]
[322196756,1712869939818,-500.0,0.00028219,2]
[322196757,1712869939827,-52708.74,0.00028219,2]
[322196758,1712869939837,-500.0,0.00028219,2]
[322196759,1712869939846,-500.0,0.00028219,2]
[322196760,1712869939855,-3260.75,0.00028219,2]
[322196761,1712869939864,-5115.15,0.00028219,2]
[322196762,1712869939874,-882.87,0.00028219,2]
[322196763,1712869939883,-510.64455065,0.00028219,2]
[322196764,1712869939893,-500.0,0.00028219,2]
[322196765,1712869939902,-500.0,0.00028219,2]
[322196766,1712869939912,-5854.93,0.00028219,2]
[322196767,1712869939921,-8061.26,0.00028219,2]
[322196768,1712869939930,-916.85,0.00028219,2]
[322196769,1712869939939,-7112.46,0.00028219,2]
[322196770,1712869939949,-745.2,0.00028219,2]
[322196771,1712869939958,-500.0,0.00028219,2]
[322196772,1712869939967,-500.0,0.00028219,2]
[322196773,1712869939976,-6099.37,0.00028219,2]
[322196774,1712869939986,-500.0,0.00028219,2]
[322196775,1712869939995,-1872.85,0.00028219,2]
[322196776,1712869940004,-1834.17,0.00028219,2]
[322196777,1712869940014,-5187.78,0.00028219,2]
[322196778,1712869940024,-500.0,0.00028219,2]
[322196779,1712869940033,-500.0,0.00028219,2]
[322196780,1712869940043,-500.0,0.00028219,2]
[322196781,1712869940052,-1268.14,0.00028219,2]
[322196782,1712869940063,-1960.92,0.00028219,2]
[322196783,1712869940072,-500.0,0.00028219,2]
[322196784,1712869940081,-500.0,0.00028219,2]
[322196785,1712869940090,-3993.87,0.00028219,2]
[322196786,1712869940100,-1940.4,0.00028219,2]
[322196787,1712869940109,-1144.44,0.00028219,2]
[322196788,1712869940118,-30065.72,0.00028219,2]
[322196789,1712869940127,-500.0,0.00028219,2]
[322196790,1712869940137,-3922.38,0.00028219,2]
[322196791,1712869940146,-1318.07,0.00028219,2]
[322196792,1712869940156,-1507.79,0.00028219,2]
[322196793,1712869940165,-7272.96,0.00028219,2]
[322196794,1712869940174,-2185.46,0.00028219,2]
[322196795,1712869940184,-500.0,0.00028219,2]
[322196796,1712869940193,-1894.92,0.00028219,2]
[322196797,1712869940202,-500.0,0.00028219,2]
[322196798,1712869940211,-500.0,0.00028219,2]
[322196799,1712869940221,-500.0,0.00028219,2]
[322196800,1712869940230,-739.67,0.00028219,2]
[322196801,1712869940239,-2576.43,0.00028219,2]
[322196802,1712869940249,-500.0,0.00028219,2]
[322196803,1712869940258,-544.81376433,0.00028219,2]
[322196804,1712869940268,-500.0,0.00028219,2]
[322196805,1712869940277,-752.22,0.00028219,2]
[322196806,1712869940286,-500.0,0.00028219,2]
[322196807,1712869940295,-500.0,0.00028219,2]
[322196808,1712869940305,-548.63,0.00028219,2]
[322196809,1712869940315,-2674.56,0.00028219,2]
[322196810,1712869940324,-918.8,0.00028219,2]
[322196811,1712869940334,-636.15,0.00028219,2]
[322196812,1712869940344,-500.0,0.00028219,2]
[322196813,1712869940354,-729.18,0.00028219,2]
[322196814,1712869940363,-763.21,0.00028219,2]
[322196815,1712869940373,-3486.04,0.00028219,2]
[322196816,1712869940386,-8034.42,0.00028219,2]
[322196817,1712869940396,-500.0,0.00028219,2]
[322196818,1712869940405,-500.0,0.00028219,2]
[322196819,1712869940415,-500.0,0.00028219,2]
[322196820,1712869940424,-3850.53,0.00028219,2]
[322196821,1712869940434,-544.38,0.00028219,2]
[322196822,1712869940443,-500.0,0.00028219,2]
[322196823,1712869940453,-1687.56,0.00028219,2]
[322196824,1712869940463,-500.0,0.00028219,2]
[322196825,1712869940474,-500.0,0.00028219,2]
[322196826,1712869940483,-4101.12,0.00028219,2]
[322196827,1712869940493,-565.51,0.00028219,2]
[322196828,1712869940502,-2084.11,0.00028219,2]
[322196829,1712869940512,-544.26,0.00028219,2]
[322196830,1712869940521,-335.14,0.00028219,2]
[322196831,1712869940531,-3404.95,0.00028219,2]
[322196832,1712869940541,-1782.79,0.00028219,2]
[322196833,1712869940551,-510.02,0.00028219,2]
[322196834,1712869940560,-500.0,0.00028219,2]
[322196835,1712869940570,-500.0,0.00028219,2]
[322196836,1712869940580,-2028.74,0.00028219,2]
[322196837,1712869940590,-500.0,0.00028219,2]
[322196838,1712869940599,-500.0,0.00028219,2]
[322196839,1712869940609,-3939.9,0.00028219,2]
[322196840,1712869940619,-733.75,0.00028219,2]
[322196841,1712869940628,-5901.28,0.00028219,2]
[322196842,1712869940638,-2166.88,0.00028219,2]
[322196843,1712869940648,-722.6,0.00028219,2]
[322196844,1712869940658,-500.0,0.00028219,2]
[322196845,1712869940667,-500.0,0.00028219,2]
[322196846,1712869940676,-538.95,0.00028219,2]
[322196847,1712869940686,-3339.86,0.00028219,2]
[322196848,1712869940695,-1774.88,0.00028219,2]
[322196849,1712869940705,-630.16,0.00028219,2]
[322196850,1712869940714,-500.0,0.00028219,2]
[322196851,1712869940724,-500.0,0.00028219,2]
[322196852,1712869940733,-896.99,0.00028219,2]
[322196853,1712869940743,-331.380326,0.00028219,14]
[322196854,1712869940752,-300.0,0.00028265,2]
[322196855,1712869940761,-18362.263604,0.000283,2]
[322196856,1712869940771,-151.0,0.000283,7]
[322196857,1712869940780,-150.0,0.000283,2]
[322196858,1712869940790,-1000.0,0.00028351,2]
[322196859,1712869940800,-1000.0,0.00028351,2]
[322196860,1712869940809,-1000.0,0.00028351,2]
[322196861,1712869940818,-1000.0,0.00028351,2]
[322196862,1712869940838,-1000.0,0.00028351,2]
[322196863,1712869940852,-1000.0,0.00028351,2]
[322196864,1712869940862,-1000.0,0.00028351,2]
[322196865,1712869940871,-1000.0,0.00028351,2]
[322196866,1712869940881,-1000.0,0.00028351,2]
[322196867,1712869940890,-1000.0,0.00028351,2]
[322196868,1712869940899,-1000.0,0.00028351,2]
[322196869,1712869940908,-1000.0,0.00028351,2]
[322196870,1712869940917,-677.585,0.00028351,2]
[322196871,1712869940927,-500.0,0.00028351,2]
[322196872,1712869940936,-3471.41144835,0.00028375,2]
[322196873,1712869940945,-394.0,0.000284,2]
[322196874,1712869940955,-1303.54003444,0.000284,2]
[322196875,1712869940965,-1303.54003435,0.000284,2]
[322196876,1712869940975,-1303.54003435,0.000284,2]
[322196877,1712869940986,-1303.54003435,0.000284,2]
[322196878,1712869940995,-1303.54003435,0.000284,2]
[322196879,1712869941004,-1303.54003435,0.000284,2]
[322196880,1712869941013,-1303.54003435,0.000284,2]
[322196881,1712869941023,-1303.54003435,0.000284,2]
[322196882,1712869941032,-1303.54003435,0.000284,2]
[322196883,1712869941042,-1303.54003435,0.000284,2]
[322196884,1712869941051,-1303.54003435,0.000284,2]
[322196885,1712869941060,-1303.54003435,0.000284,2]
[322196886,1712869941070,-1303.54003435,0.000284,2]
[322196887,1712869941080,-1303.54003435,0.000284,2]
[322196888,1712869941089,-1303.54003435,0.000284,2]
[322196889,1712869941099,-1303.54003435,0.000284,2]
[322196890,1712869941109,-46063.60810054,0.0002844,2]
[322196891,1712869941118,-282.38217184,0.00028447,2]
[322196892,1712869941128,-6088.6401669,0.0002849,2]
[322196893,1712869941136,-69122.7566654,0.0002849,2]
[322196894,1712869941146,-3890.5604613,0.00028492,2]
[322196895,1712869941155,-2878.22126822,0.00028493,2]
[322196896,1712869941164,-430.82025489,0.00028493,2]
[322196897,1712869941173,-500.0,0.00028493,2]
[322196898,1712869941182,-500.0,0.00028493,2]
[322196899,1712869941191,-507.89,0.00028493,2]
[322196900,1712869941201,-500.0,0.00028493,2]
[322196901,1712869941210,-590.86,0.00028493,2]
[322196902,1712869941219,-500.0,0.00028493,2]
[322196903,1712869941229,-500.0,0.00028493,2]
[322196904,1712869941238,-500.0,0.00028493,2]
[322196905,1712869941247,-805.44,0.00028493,2]
[322196906,1712869941256,-500.0,0.00028493,2]
[322196907,1712869941265,-500.0,0.00028493,2]
[322196908,1712869941274,-629.54,0.00028493,2]
[322196909,1712869941283,-500.0,0.00028493,2]
[322196910,1712869941293,-500.0,0.00028493,2]
[322196911,1712869941302,-500.0,0.00028493,2]
[322196912,1712869941311,-500.0,0.00028493,2]
[322196913,1712869941320,-765.12,0.00028493,2]
[322196914,1712869941329,-579.94809162,0.00028493,2]
[322196915,1712869941338,-500.0,0.00028493,2]
[322196916,1712869941348,-500.0,0.00028493,2]
[322196917,1712869941357,-673.55,0.00028493,2]
[322196918,1712869941367,-500.0,0.00028493,2]
[322196919,1712869941377,-500.0,0.00028493,2]
[322196920,1712869941391,-500.0,0.00028493,2]
[322196921,1712869941400,-500.0,0.00028493,2]
[322196922,1712869941409,-500.0,0.00028493,2]
[322196923,1712869941418,-1055.22,0.00028493,2]
[322196924,1712869941513,-838.26,0.00028493,2]
[322196925,1712869941523,-513.12,0.00028493,2]
[322196926,1712869941532,-500.0,0.00028493,2]
[322196927,1712869941542,-561.16,0.00028493,2]
[322196928,1712869941552,-500.0,0.00028493,2]
[322196929,1712869941561,-520.88,0.00028493,2]
[322196930,1712869941571,-500.0,0.00028493,2]
[322196931,1712869941581,-456.40390463,0.00028493,2]
[322196932,1712869941590,-532.8,0.00028493,2]
[322196933,1712869941599,-500.0,0.00028493,2]
[322196934,1712869941608,-717.66,0.00028493,2]
[322196935,1712869941618,-500.0,0.00028493,2]
[322196936,1712869941627,-500.0,0.00028493,2]
[322196937,1712869941636,-500.0,0.00028493,2]
[322196938,1712869941647,-500.0,0.00028493,2]
[322196939,1712869941657,-956.54,0.00028493,2]
[322196940,1712869941666,-468.52060109,0.00028493,2]
[322196941,1712869941676,-500.0,0.00028493,2]
[322196942,1712869941685,-527.16,0.00028493,2]
[322196943,1712869941694,-500.0,0.00028493,2]
[322196944,1712869941702,-500.0,0.00028493,2]
[322196945,1712869941711,-500.0,0.00028493,2]
[322196946,1712869941720,-500.0,0.00028493,2]
[322196947,1712869941729,-500.0,0.00028493,2]
[322196948,1712869941738,-500.0,0.00028493,2]
[322196949,1712869941747,-500.0,0.00028493,2]
[322196950,1712869941756,-500.0,0.00028493,2]
[322196951,1712869941765,-388.73966191,0.00028493,2]
[322196952,1712869941774,-583.53,0.00028493,2]
[322196953,1712869941784,-500.0,0.00028493,2]
[322196954,1712869941793,-500.0,0.00028493,2]
[322196955,1712869941802,-500.0,0.00028493,2]
[322196956,1712869941811,-474.49606152,0.00028493,2]
[322196957,1712869941822,-500.0,0.00028493,2]
[322196958,1712869941831,-500.0,0.00028493,2]
[322196959,1712869941841,-500.0,0.00028493,2]
[322196960,1712869941852,-500.0,0.00028493,2]
[322196961,1712869941861,-794.27,0.00028493,2]
[322196962,1712869941871,-500.0,0.00028493,2]
[322196963,1712869941880,-500.0,0.00028493,2]
[322196964,1712869941889,-775.81,0.00028493,2]
[322196965,1712869941898,-500.0,0.00028493,2]
[322196966,1712869941907,-500.0,0.00028493,2]
[322196967,1712869941917,-500.0,0.00028493,2]
[322196968,1712869941927,-1268.53,0.00028493,2]
[322196969,1712869941936,-579.81,0.00028493,2]
[322196970,1712869941945,-683.65,0.00028493,2]
[322196971,1712869941954,-500.0,0.00028493,2]
[322196972,1712869941963,-500.0,0.00028493,2]
[322196973,1712869941972,-500.0,0.00028493,2]
[322196974,1712869941982,-500.0,0.00028493,2]
[322196975,1712869941991,-489.00750997,0.00028493,2]
[322196976,1712869942000,-1283.53,0.00028493,2]
[322196977,1712869942009,-500.0,0.00028493,2]
[322196978,1712869942019,-500.0,0.00028493,2]
[322196979,1712869942027,-360.87643517,0.00028493,2]
[322196980,1712869942037,-1242.22,0.00028493,2]
[322196981,1712869942046,-500.0,0.00028493,2]
[322196982,1712869942055,-610.16,0.00028493,2]
[322196983,1712869942064,-500.0,0.00028493,2]
[322196984,1712869942073,-686.6,0.00028493,2]
[322196985,1712869942082,-964.51,0.00028493,2]
[322196986,1712869942092,-552.23,0.00028493,2]
[322196987,1712869942101,-500.0,0.00028493,2]
[322196988,1712869942110,-500.0,0.00028493,2]
[322196989,1712869942119,-500.0,0.00028493,2]
[322196990,1712869942127,-500.0,0.00028493,2]
[322196991,1712869942137,-993.58,0.00028493,2]
[322196992,1712869942147,-500.0,0.00028493,2]
[322196993,1712869942156,-675.23,0.00028493,2]
[322196994,1712869942166,-500.0,0.00028493,2]
[322196995,1712869942175,-500.0,0.00028493,2]
[322196996,1712869942185,-1308.49,0.00028493,2]
[322196997,1712869942194,-564.56,0.00028493,2]
[322196998,1712869942203,-703.03,0.00028493,2]
[322196999,1712869942212,-560.79,0.00028493,2]
[322197000,1712869942222,-500.0,0.00028493,2]
[322197001,1712869942233,-260.05045636,0.00028493,2]
[322197002,1712869942243,-561.9,0.00028493,2]
[322197003,1712869942252,-1067.51,0.00028493,2]
[322197004,1712869942263,-598.24,0.00028493,2]
[322197005,1712869942273,-500.0,0.00028493,2]
[322197006,1712869942283,-500.0,0.00028493,2]
[322197007,1712869942293,-500.0,0.00028493,2]
[322197008,1712869942304,-691.29,0.00028493,2]
[322197009,1712869942313,-500.0,0.00028493,2]
[322197010,1712869942323,-500.0,0.00028493,2]
[322197011,1712869942333,-500.0,0.00028493,2]
[322197012,1712869942344,-704.14,0.00028493,2]
[322197013,1712869942354,-500.0,0.00028493,2]
[322197014,1712869942363,-645.96,0.00028493,2]
[322197015,1712869942373,-1172.44,0.00028493,2]
[322197016,1712869942383,-500.0,0.00028493,2]
[322197017,1712869942394,-241.445172,0.00028493,7]
[322197018,1712869942404,-500.0,0.00028493,2]
[322197019,1712869942413,-500.0,0.00028493,2]
[322197020,1712869942422,-500.0,0.00028493,2]
[322197021,1712869942432,-1403.78,0.00028493,2]
[322197022,1712869942441,-500.0,0.00028493,2]
[322197023,1712869942451,-820.3,0.00028493,2]
[322197024,1712869942462,-500.0,0.00028493,2]
[322197025,1712869942471,-486.63,0.00028493,2]
[322197026,1712869942482,-500.0,0.00028493,2]
[322197027,1712869942492,-500.0,0.00028493,2]
[322197028,1712869942502,-500.0,0.00028493,2]
[322197029,1712869942511,-500.0,0.00028493,2]
[322197030,1712869942521,-626.17,0.00028493,2]
[322197031,1712869942531,-1352.31,0.00028493,2]
[322197032,1712869942540,-868.58,0.00028493,2]
[322197033,1712869942550,-500.0,0.00028493,2]
[322197034,1712869942560,-286.66971166,0.00028493,2]
[322197035,1712869942570,-500.0,0.00028493,2]
[322197036,1712869942579,-1263.1,0.00028493,2]
[322197037,1712869942590,-500.0,0.00028493,2]
[322197038,1712869942599,-1192.54,0.00028493,2]
[322197039,1712869942610,-811.44,0.00028493,2]
[322197040,1712869942629,-500.0,0.00028493,2]
[322197041,1712869942643,-500.0,0.00028493,2]
[322197042,1712869942653,-500.0,0.00028493,2]
[322197043,1712869942664,-1391.45,0.00028493,2]
[322197044,1712869942674,-609.69,0.00028493,2]
[322197045,1712869942684,-676.3,0.00028493,2]
[322197046,1712869942694,-540.39,0.00028493,2]
[322197047,1712869942705,-1771.03,0.00028493,2]
[322197048,1712869942716,-500.0,0.00028493,2]
[322197049,1712869942725,-541.31,0.00028493,2]
[322197050,1712869942736,-1468.06,0.00028493,2]
[322197051,1712869942745,-500.0,0.00028493,2]
[322197052,1712869942755,-862.27,0.00028493,2]
[322197053,1712869942764,-500.0,0.00028493,2]
[322197054,1712869942773,-1183.63,0.00028493,2]
[322197055,1712869942782,-500.0,0.00028493,2]
[322197056,1712869942791,-598.02167655,0.00028493,2]
[322197057,1712869942800,-500.0,0.00028493,2]
[322197058,1712869942809,-500.0,0.00028493,2]
[322197059,1712869942818,-500.0,0.00028493,2]
[322197060,1712869942827,-839.54,0.00028493,2]
[322197061,1712869942837,-500.0,0.00028493,2]
[322197062,1712869942848,-500.0,0.00028493,2]
[322197063,1712869942858,-1787.12,0.00028493,2]
[322197064,1712869942870,-500.0,0.00028493,2]
[322197065,1712869942881,-500.0,0.00028493,2]
[322197066,1712869942892,-500.0,0.00028493,2]
[322197067,1712869942902,-500.0,0.00028493,2]
[322197068,1712869942911,-500.0,0.00028493,2]
[322197069,1712869942922,-1253.73,0.00028493,2]
[322197070,1712869942933,-500.0,0.00028493,2]
[322197071,1712869942944,-735.73,0.00028493,2]
[322197072,1712869942954,-500.0,0.00028493,2]
[322197073,1712869942965,-500.0,0.00028493,2]
[322197074,1712869942975,-500.0,0.00028493,2]
[322197075,1712869942986,-1318.44,0.00028493,2]
[322197076,1712869942996,-500.0,0.00028493,2]
[322197077,1712869943006,-1495.11,0.00028493,2]
[322197078,1712869943016,-700.59,0.00028493,2]
[322197079,1712869943026,-758.95,0.00028493,2]
[322197080,1712869943035,-521.21,0.00028493,2]
[322197081,1712869943044,-500.0,0.00028493,2]
[322197082,1712869943055,-1654.67,0.00028493,2]
[322197083,1712869943064,-500.0,0.00028493,2]
[322197084,1712869943073,-500.0,0.00028493,2]
[322197085,1712869943082,-500.0,0.00028493,2]
[322197086,1712869943092,-638.47,0.00028493,2]
[322197087,1712869943102,-500.0,0.00028493,2]
[322197088,1712869943111,-1164.2,0.00028493,2]
[322197089,1712869943122,-500.0,0.00028493,2]
[322197090,1712869943132,-500.0,0.00028493,2]
[322197091,1712869943142,-949.05,0.00028493,2]
[322197092,1712869943153,-500.0,0.00028493,2]
[322197093,1712869943164,-500.0,0.00028493,2]
[322197094,1712869943175,-500.0,0.00028493,2]
[322197095,1712869943185,-1096.04,0.00028493,2]
[322197096,1712869943197,-777.64,0.00028493,2]
[322197097,1712869943207,-646.84,0.00028493,2]
[322197098,1712869943217,-500.0,0.00028493,2]
[322197099,1712869943226,-500.0,0.00028493,2]
[322197100,1712869943238,-500.0,0.00028493,2]
[322197101,1712869943249,-958.72,0.00028493,2]
[322197102,1712869943259,-500.0,0.00028493,2]
[322197103,1712869943270,-683.7,0.00028493,2]
[322197104,1712869943281,-500.0,0.00028493,2]
[322197105,1712869943290,-897.54,0.00028493,2]
[322197106,1712869943301,-500.0,0.00028493,2]
[322197107,1712869943311,-684.68,0.00028493,2]
[322197108,1712869943322,-500.0,0.00028493,2]
[322197109,1712869943331,-500.0,0.00028493,2]
[322197110,1712869943341,-543.38,0.00028493,2]
[322197111,1712869943351,-285.21552612,0.00028493,2]
[322197112,1712869943361,-809.17,0.00028493,2]
[322197113,1712869943371,-500.0,0.00028493,2]
[322197114,1712869943384,-698.14,0.00028493,2]
[322197115,1712869943395,-500.0,0.00028493,2]
[322197116,1712869943405,-500.0,0.00028493,2]
[322197117,1712869943415,-500.0,0.00028493,2]
[322197118,1712869943426,-1067.08,0.00028493,2]
[322197119,1712869943436,-500.0,0.00028493,2]
[322197120,1712869943446,-1021.38,0.00028493,2]
[322197121,1712869943456,-500.0,0.00028493,2]
[322197122,1712869943469,-784.4,0.00028493,2]
[322197123,1712869943479,-614.15712522,0.00028493,2]
[322197124,1712869943489,-1207.29,0.00028493,2]
[322197125,1712869943499,-853.95,0.00028493,2]
[322197126,1712869943508,-1154.75,0.00028493,2]
[322197127,1712869943517,-1500.39,0.00028493,2]
[322197128,1712869943527,-500.0,0.00028493,2]
[322197129,1712869943537,-500.0,0.00028493,2]
[322197130,1712869943547,-500.0,0.00028493,2]
[322197131,1712869943557,-1102.48,0.00028493,2]
[322197132,1712869943566,-500.0,0.00028493,2]
[322197133,1712869943576,-1684.95,0.00028493,2]
[322197134,1712869943586,-864.47,0.00028493,2]
[322197135,1712869943596,-1050.08,0.00028493,2]
[322197136,1712869943606,-1060.45,0.00028493,2]
[322197137,1712869943615,-500.0,0.00028493,2]
[322197138,1712869943624,-727.49,0.00028493,2]
[322197139,1712869943634,-534.42,0.00028493,2]
[322197140,1712869943645,-500.0,0.00028493,2]
[322197141,1712869943655,-500.0,0.00028493,2]
[322197142,1712869943665,-500.0,0.00028493,2]
[322197143,1712869943676,-500.0,0.00028493,2]
[322197144,1712869943686,-598.73,0.00028493,2]
[322197145,1712869943696,-500.0,0.00028493,2]
[322197146,1712869943706,-1013.17,0.00028493,2]
[322197147,1712869943715,-500.0,0.00028493,2]
[322197148,1712869943726,-552.15,0.00028493,2]
[322197149,1712869943735,-722.75,0.00028493,2]
[322197150,1712869943744,-500.0,0.00028493,2]
[322197151,1712869943753,-500.0,0.00028493,2]
[322197152,1712869943763,-1454.96,0.00028493,2]
[322197153,1712869943772,-585.74,0.00028493,2]
[322197154,1712869943782,-600.91,0.00028493,2]
[322197155,1712869943791,-627.17,0.00028493,2]